[Event "Titled Tuesday Blitz July 27 2021"]
[White "Moksh Amit Doshi"]
[Black "Makhmudov, Shukhrat"]
[WhiteFideId "25064967"]
[BlackFideId "14200775"]
[WhiteElo "2245"]
[BlackElo "2135"]
[Result "1-0"]
[Round "10"]
[TimeControl "180+1"]
[Date "2021.07.27"]
[WhiteClock "0:00:30"]
[BlackClock "0:00:18"]

1. d4 {[%clk 0:03:00]}  Nf6 {[%clk 0:02:59]} 2. c4 {[%clk 0:02:59]}  e6 {[%clk 0:03:00]} 3. Nf3 {[%clk 0:02:58]}  d5 {[%clk 0:02:59]} 4. g3 {[%clk 0:02:58]}  c6 {[%clk 0:02:59]} 5. Bg2 {[%clk 0:02:57]}  Nbd7 {[%clk 0:02:59]} 6. O-O {[%clk 0:02:56]}  Bd6 {[%clk 0:03:00]} 7. Nc3 {[%clk 0:02:53]}  Qe7 {[%clk 0:03:00]} 8. Nd2 {[%clk 0:02:33]}  O-O {[%clk 0:02:49]} 9. b3 {[%clk 0:02:30]}  dxc4 {[%clk 0:02:46]} 10. Nxc4 {[%clk 0:02:28]}  Bb4 {[%clk 0:02:46]} 11. Bb2 {[%clk 0:02:27]}  e5 {[%clk 0:02:46]} 12. a3 {[%clk 0:02:05]}  Bxc3 {[%clk 0:02:43]} 13. Bxc3 {[%clk 0:02:06]}  exd4 {[%clk 0:02:43]} 14. Qxd4 {[%clk 0:02:07]}  Nc5 {[%clk 0:02:38]} 15. Bb4 {[%clk 0:02:03]}  Nfd7 {[%clk 0:02:11]} 16. Nd6 {[%clk 0:01:53]}  Nxb3 {[%clk 0:01:55]} 17. Nxc8 {[%clk 0:01:29]}  Rfxc8 {[%clk 0:01:52]} 18. Qc3 {[%clk 0:01:11]}  Ndc5 {[%clk 0:01:45]} 19. Qxb3 {[%clk 0:01:09]}  Nxb3 {[%clk 0:01:42]} 20. Bxe7 {[%clk 0:01:10]}  Nxa1 {[%clk 0:01:41]} 21. Rxa1 {[%clk 0:01:11]}  Re8 {[%clk 0:01:41]} 22. Bg5 {[%clk 0:01:07]}  Rxe2 {[%clk 0:01:40]} 23. Rb1 {[%clk 0:01:06]}  f6 {[%clk 0:01:35]} 24. Be3 {[%clk 0:01:04]}  Rb8 {[%clk 0:01:31]} 25. Bxc6 {[%clk 0:01:02]}  b6 {[%clk 0:01:22]} 26. Be4 {[%clk 0:00:59]}  Kh8 {[%clk 0:01:13]} 27. Rc1 {[%clk 0:00:58]}  g6 {[%clk 0:01:08]} 28. Rc7 {[%clk 0:00:55]}  Re8 {[%clk 0:00:59]} 29. Bd3 {[%clk 0:00:52]}  R2xe3 {[%clk 0:00:57]} 30. fxe3 {[%clk 0:00:53]}  Rxe3 {[%clk 0:00:57]} 31. Rc3 {[%clk 0:00:52]}  Re5 {[%clk 0:00:53]} 32. Kf2 {[%clk 0:00:52]}  Kg7 {[%clk 0:00:51]} 33. Rc7+ {[%clk 0:00:51]}  Kh6 {[%clk 0:00:50]} 34. Rxa7 {[%clk 0:00:51]}  Rd5 {[%clk 0:00:47]} 35. Be4 {[%clk 0:00:51]}  Rc5 {[%clk 0:00:47]} 36. a4 {[%clk 0:00:48]}  f5 {[%clk 0:00:46]} 37. Bd3 {[%clk 0:00:47]}  Rc3 {[%clk 0:00:44]} 38. Ke3 {[%clk 0:00:46]}  Ra3 {[%clk 0:00:40]} 39. Ra6 {[%clk 0:00:43]}  Kg5 {[%clk 0:00:38]} 40. Kd4 {[%clk 0:00:40]}  Rb3 {[%clk 0:00:34]} 41. Ra7 {[%clk 0:00:37]}  h5 {[%clk 0:00:33]} 42. Rb7 {[%clk 0:00:30]}  h4 {[%clk 0:00:24]} 43. Bc4 {[%clk 0:00:28]}  hxg3 {[%clk 0:00:18]} 44. hxg3 {[%clk 0:00:26]}  Rxg3 {[%clk 0:00:17]} 45. Rxb6 {[%clk 0:00:26]}  Rg4+ {[%clk 0:00:18]} 46. Kc5 {[%clk 0:00:26]}  f4 {[%clk 0:00:18]} 47. a5 {[%clk 0:00:26]}  f3 {[%clk 0:00:18]} 48. a6 {[%clk 0:00:25]}  f2 {[%clk 0:00:18]} 49. Rb1 {[%clk 0:00:25]}  Rg1 {[%clk 0:00:18]} 50. Rf1 {[%clk 0:00:24]}  Rxf1 {[%clk 0:00:17]} 51. Bxf1 {[%clk 0:00:25]}  Kf4 {[%clk 0:00:17]} 52. a7 {[%clk 0:00:25]}  g5 {[%clk 0:00:17]} 53. a8=Q {[%clk 0:00:26]}  g4 {[%clk 0:00:17]} 54. Qg2 {[%clk 0:00:27]}  g3 {[%clk 0:00:18]} 55. Be2 {[%clk 0:00:27]}  Ke3 {[%clk 0:00:18]} 56. Qf3+ {[%clk 0:00:27]}  Kd2 {[%clk 0:00:18]} 57. Bf1 {[%clk 0:00:27]}  Ke1 {[%clk 0:00:17]} 58. Bg2 {[%clk 0:00:27]}  f1=B {[%clk 0:00:15]} 59. Qxf1+ {[%clk 0:00:27]}  Kd2 {[%clk 0:00:15]} 60. Qf3 {[%clk 0:00:28]}  Ke1 {[%clk 0:00:15]} 61. Qxg3+ {[%clk 0:00:29]}  Kd2 {[%clk 0:00:15]} 62. Qf2+ {[%clk 0:00:30]}  Kd1 {[%clk 0:00:15]} 63. Bf3+ {[%clk 0:00:29]}  Kc1 {[%clk 0:00:16]} 64. Kc4 {[%clk 0:00:29]}  Kb1 {[%clk 0:00:17]} 65. Kb3 {[%clk 0:00:30]}  Ka1 {[%clk 0:00:18]} 66. Qa2# {[%clk 0:00:30]} 1-0


[Site "https://www.chess.com"]

[Event "Titled Tuesday Blitz July 27 2021"]
[White "Nugumanov, Bakhtiyar"]
[Black "Lohani, Sujana"]
[WhiteFideId "13701797"]
[BlackFideId "12311987"]
[WhiteElo "2262"]
[BlackElo "1691"]
[Result "0-1"]
[Round "10"]
[TimeControl "180+1"]
[Date "2021.07.27"]
[WhiteClock "0:00:48"]
[BlackClock "0:00:17"]

1. e4 {[%clk 0:02:58]}  c5 {[%clk 0:03:00]} 2. Nc3 {[%clk 0:02:56]}  g6 {[%clk 0:02:59]} 3. f4 {[%clk 0:02:57]}  Bg7 {[%clk 0:02:59]} 4. Nf3 {[%clk 0:02:57]}  e6 {[%clk 0:02:59]} 5. f5 {[%clk 0:02:55]}  exf5 {[%clk 0:02:53]} 6. exf5 {[%clk 0:02:54]}  Ne7 {[%clk 0:02:53]} 7. fxg6 {[%clk 0:02:51]}  hxg6 {[%clk 0:02:48]} 8. Bc4 {[%clk 0:02:39]}  d5 {[%clk 0:02:33]} 9. Bb5+ {[%clk 0:02:39]}  Kf8 {[%clk 0:02:32]} 10. O-O {[%clk 0:02:36]}  Qd6 {[%clk 0:02:30]} 11. d4 {[%clk 0:02:17]}  Bxd4+ {[%clk 0:02:14]} 12. Kh1 {[%clk 0:02:16]}  Bg4 {[%clk 0:02:01]} 13. Ne2 {[%clk 0:01:48]}  Bxf3 {[%clk 0:01:36]} 14. Bf4 {[%clk 0:01:48]}  Qxf4 {[%clk 0:01:32]} 15. Nxf4 {[%clk 0:01:46]}  Bxd1 {[%clk 0:01:31]} 16. Ne6+ {[%clk 0:01:31]}  Kg8 {[%clk 0:01:29]} 17. Nc7 {[%clk 0:01:32]}  Be5 {[%clk 0:01:09]} 18. Nxa8 {[%clk 0:01:30]}  Bxc2 {[%clk 0:01:09]} 19. h3 {[%clk 0:01:22]}  Be4 {[%clk 0:01:07]} 20. Kg1 {[%clk 0:01:21]}  Nbc6 {[%clk 0:00:56]} 21. Rae1 {[%clk 0:01:16]}  Kg7 {[%clk 0:00:53]} 22. Be2 {[%clk 0:01:06]}  Rxa8 {[%clk 0:00:51]} 23. Bf3 {[%clk 0:01:07]}  Bxf3 {[%clk 0:00:50]} 24. Rxf3 {[%clk 0:01:08]}  Bd4+ {[%clk 0:00:47]} 25. Kh2 {[%clk 0:01:07]}  Nf5 {[%clk 0:00:42]} 26. g4 {[%clk 0:01:06]}  Nd6 {[%clk 0:00:32]} 27. Rff1 {[%clk 0:01:06]}  Re8 {[%clk 0:00:31]} 28. Rxe8 {[%clk 0:01:05]}  Nxe8 {[%clk 0:00:32]} 29. h4 {[%clk 0:01:05]}  Nd6 {[%clk 0:00:29]} 30. Kh3 {[%clk 0:01:05]}  Ne4 {[%clk 0:00:28]} 31. h5 {[%clk 0:01:05]}  gxh5 {[%clk 0:00:27]} 32. gxh5 {[%clk 0:01:06]}  Ne5 {[%clk 0:00:27]} 33. b3 {[%clk 0:01:02]}  b5 {[%clk 0:00:25]} 34. Rf5 {[%clk 0:01:00]}  a5 {[%clk 0:00:22]} 35. Kg2 {[%clk 0:00:59]}  c4 {[%clk 0:00:20]} 36. bxc4 {[%clk 0:01:00]}  bxc4 {[%clk 0:00:20]} 37. Rf1 {[%clk 0:00:59]}  c3 {[%clk 0:00:20]} 38. Rd1 {[%clk 0:00:58]}  c2 {[%clk 0:00:19]} 39. Rc1 {[%clk 0:00:58]}  Nc4 {[%clk 0:00:17]} 40. Kf3 {[%clk 0:00:57]}  Ne3 {[%clk 0:00:18]} 41. Rg1+ {[%clk 0:00:55]}  Kh6 {[%clk 0:00:17]} 42. Ke2 {[%clk 0:00:56]}  Nc3+ {[%clk 0:00:16]} 43. Kd3 {[%clk 0:00:56]}  Nxa2 {[%clk 0:00:16]} 44. Ke2 {[%clk 0:00:42]}  c1=Q {[%clk 0:00:16]} 45. Rxc1 {[%clk 0:00:43]}  Nxc1+ {[%clk 0:00:16]} 46. Kf3 {[%clk 0:00:44]}  Bc5 {[%clk 0:00:15]} 47. Kf4 {[%clk 0:00:45]}  a4 {[%clk 0:00:15]} 48. Ke5 {[%clk 0:00:45]}  a3 {[%clk 0:00:16]} 49. Kf6 {[%clk 0:00:46]}  a2 {[%clk 0:00:17]} 50. Kxf7 {[%clk 0:00:47]}  a1=Q {[%clk 0:00:18]} 51. Kg8 {[%clk 0:00:48]}  Qg7# {[%clk 0:00:17]} 0-1


[Site "https://www.chess.com"]

[Event "Titled Tuesday Blitz July 27 2021"]
[White "Obregon, Andres Carlos"]
[Black "Demchenko, Anton"]
[WhiteFideId "111724"]
[BlackFideId "4160258"]
[WhiteElo "2572"]
[BlackElo "2593"]
[Result "0-1"]
[Round "10"]
[TimeControl "180+1"]
[Date "2021.07.27"]
[WhiteClock "0:00:54"]
[BlackClock "0:00:28"]

1. d4 {[%clk 0:03:00]}  d5 {[%clk 0:02:59]} 2. Nf3 {[%clk 0:02:59]}  Nf6 {[%clk 0:02:59]} 3. c4 {[%clk 0:02:59]}  dxc4 {[%clk 0:02:59]} 4. e3 {[%clk 0:02:59]}  Bg4 {[%clk 0:03:00]} 5. Bxc4 {[%clk 0:02:58]}  e6 {[%clk 0:03:01]} 6. h3 {[%clk 0:02:57]}  Bh5 {[%clk 0:03:00]} 7. O-O {[%clk 0:02:52]}  Nbd7 {[%clk 0:03:00]} 8. Be2 {[%clk 0:02:49]}  Be7 {[%clk 0:02:58]} 9. Nc3 {[%clk 0:02:49]}  O-O {[%clk 0:02:55]} 10. e4 {[%clk 0:02:36]}  c6 {[%clk 0:02:55]} 11. Be3 {[%clk 0:02:34]}  Rc8 {[%clk 0:02:24]} 12. Rc1 {[%clk 0:02:13]}  a6 {[%clk 0:02:16]} 13. g4 {[%clk 0:01:54]}  Bg6 {[%clk 0:02:16]} 14. Nd2 {[%clk 0:01:54]}  c5 {[%clk 0:02:05]} 15. f3 {[%clk 0:01:51]}  b5 {[%clk 0:01:54]} 16. Kg2 {[%clk 0:01:37]}  Qb6 {[%clk 0:01:49]} 17. Nb3 {[%clk 0:01:36]}  c4 {[%clk 0:01:48]} 18. Na1 {[%clk 0:01:24]}  Rfd8 {[%clk 0:01:44]} 19. Qe1 {[%clk 0:01:23]}  h6 {[%clk 0:01:32]} 20. a3 {[%clk 0:01:20]}  a5 {[%clk 0:01:15]} 21. a4 {[%clk 0:01:19]}  bxa4 {[%clk 0:01:01]} 22. Nxa4 {[%clk 0:01:19]}  Qb7 {[%clk 0:01:02]} 23. Bxc4 {[%clk 0:01:12]}  Nxe4 {[%clk 0:01:00]} 24. fxe4 {[%clk 0:01:11]}  Bxe4+ {[%clk 0:01:01]} 25. Kg1 {[%clk 0:01:10]}  Nf6 {[%clk 0:00:57]} 26. Qe2 {[%clk 0:00:58]}  Nd5 {[%clk 0:00:37]} 27. Ba6 {[%clk 0:00:54]}  Qb8 {[%clk 0:00:28]} 28. Rxc8 {[%clk 0:00:53]}  Rxc8 {[%clk 0:00:28]} 29. Bxc8 {[%clk 0:00:54]}  Qg3+ {[%clk 0:00:28]} 0-1


[Site "https://www.chess.com"]

[Event "Titled Tuesday Blitz July 27 2021"]
[White "Onyshchuk, Volodymyr"]
[Black "Martinez Alcantara, Jose Eduardo"]
[WhiteFideId "14114038"]
[BlackFideId "3805662"]
[WhiteElo "2603"]
[BlackElo "2690"]
[Result "1-0"]
[Round "10"]
[TimeControl "180+1"]
[Date "2021.07.27"]
[WhiteClock "0:00:06"]
[BlackClock "0:00:01"]

1. Nf3 {[%clk 0:03:00]}  c5 {[%clk 0:02:30]} 2. g3 {[%clk 0:03:01]}  Nc6 {[%clk 0:02:28]} 3. Bg2 {[%clk 0:03:01]}  g6 {[%clk 0:02:25]} 4. d4 {[%clk 0:03:01]}  cxd4 {[%clk 0:02:24]} 5. Nxd4 {[%clk 0:03:02]}  Bg7 {[%clk 0:02:23]} 6. Nb3 {[%clk 0:03:03]}  d6 {[%clk 0:02:21]} 7. Nc3 {[%clk 0:03:01]}  Nf6 {[%clk 0:02:19]} 8. h3 {[%clk 0:03:01]}  O-O {[%clk 0:02:19]} 9. e4 {[%clk 0:03:01]}  Be6 {[%clk 0:02:05]} 10. Nd5 {[%clk 0:03:01]}  a5 {[%clk 0:02:02]} 11. a4 {[%clk 0:03:00]}  Ne5 {[%clk 0:01:54]} 12. O-O {[%clk 0:02:53]}  Nxd5 {[%clk 0:01:50]} 13. exd5 {[%clk 0:02:53]}  Bd7 {[%clk 0:01:49]} 14. c3 {[%clk 0:02:50]}  b5 {[%clk 0:01:45]} 15. axb5 {[%clk 0:02:41]}  Bxb5 {[%clk 0:01:46]} 16. Re1 {[%clk 0:02:41]}  Nd3 {[%clk 0:01:32]} 17. Bf1 {[%clk 0:02:36]}  Nxc1 {[%clk 0:01:15]} 18. Bxb5 {[%clk 0:02:36]}  Nxb3 {[%clk 0:01:15]} 19. Qxb3 {[%clk 0:02:35]}  Qb6 {[%clk 0:01:09]} 20. Rxe7 {[%clk 0:02:24]}  Rfb8 {[%clk 0:01:03]} 21. c4 {[%clk 0:02:17]}  Qd4 {[%clk 0:00:57]} 22. Qf3 {[%clk 0:01:49]}  Bf6 {[%clk 0:00:46]} 23. Re2 {[%clk 0:01:47]}  Kg7 {[%clk 0:00:45]} 24. Kg2 {[%clk 0:01:45]}  a4 {[%clk 0:00:38]} 25. Ra3 {[%clk 0:01:42]}  Ra7 {[%clk 0:00:34]} 26. h4 {[%clk 0:01:25]}  h5 {[%clk 0:00:34]} 27. Rd3 {[%clk 0:01:19]}  Qc5 {[%clk 0:00:33]} 28. Rdd2 {[%clk 0:01:06]}  Rbb7 {[%clk 0:00:24]} 29. g4 {[%clk 0:00:55]}  hxg4 {[%clk 0:00:23]} 30. Qxg4 {[%clk 0:00:55]}  Rb8 {[%clk 0:00:15]} 31. h5 {[%clk 0:00:52]}  Rh8 {[%clk 0:00:15]} 32. hxg6 {[%clk 0:00:46]}  fxg6 {[%clk 0:00:16]} 33. Be8 {[%clk 0:00:38]}  Rh6 {[%clk 0:00:13]} 34. Re4 {[%clk 0:00:30]}  a3 {[%clk 0:00:10]} 35. bxa3 {[%clk 0:00:26]}  Qxa3 {[%clk 0:00:11]} 36. Rde2 {[%clk 0:00:24]}  Qc1 {[%clk 0:00:08]} 37. Re1 {[%clk 0:00:23]}  Qg5 {[%clk 0:00:06]} 38. Qxg5 {[%clk 0:00:22]}  Bxg5 {[%clk 0:00:07]} 39. Re6 {[%clk 0:00:20]}  Bf4 {[%clk 0:00:05]} 40. R1e4 {[%clk 0:00:20]}  Be5 {[%clk 0:00:04]} 41. R4xe5 {[%clk 0:00:16]}  dxe5 {[%clk 0:00:04]} 42. c5 {[%clk 0:00:16]}  Ra2 {[%clk 0:00:01]} 43. d6 {[%clk 0:00:14]}  Rd2 {[%clk 0:00:01]} 44. c6 {[%clk 0:00:13]}  Rh4 {[%clk 0:00:01]} 45. c7 {[%clk 0:00:06]} 1-0


[Site "https://www.chess.com"]

[Event "Titled Tuesday Blitz July 27 2021"]
[White "Osmonbekov, Talaibek"]
[Black "Wong, Yinn Long"]
[WhiteFideId "2017253"]
[BlackFideId "5707684"]
[WhiteElo "2135"]
[BlackElo "2016"]
[Result "0-1"]
[Round "10"]
[TimeControl "180+1"]
[Date "2021.07.27"]
[WhiteClock "0:00:24"]
[BlackClock "0:01:49"]

1. d4 {[%clk 0:03:00]}  Nf6 {[%clk 0:02:59]} 2. Nc3 {[%clk 0:03:00]}  d5 {[%clk 0:02:59]} 3. Bf4 {[%clk 0:02:58]}  e6 {[%clk 0:02:55]} 4. e3 {[%clk 0:02:58]}  Bb4 {[%clk 0:02:56]} 5. Bd3 {[%clk 0:02:57]}  c5 {[%clk 0:02:56]} 6. dxc5 {[%clk 0:02:56]}  Bxc3+ {[%clk 0:02:52]} 7. bxc3 {[%clk 0:02:55]}  Nc6 {[%clk 0:02:52]} 8. Nf3 {[%clk 0:02:54]}  Qa5 {[%clk 0:02:52]} 9. O-O {[%clk 0:02:48]}  Qxc5 {[%clk 0:02:52]} 10. Qd2 {[%clk 0:02:37]}  O-O {[%clk 0:02:52]} 11. Rab1 {[%clk 0:02:32]}  Re8 {[%clk 0:02:52]} 12. Ne5 {[%clk 0:02:23]}  a6 {[%clk 0:02:48]} 13. h3 {[%clk 0:02:15]}  h6 {[%clk 0:02:47]} 14. a4 {[%clk 0:02:08]}  Qa5 {[%clk 0:02:42]} 15. Ra1 {[%clk 0:02:03]}  Nd7 {[%clk 0:02:40]} 16. Nxd7 {[%clk 0:01:45]}  Bxd7 {[%clk 0:02:41]} 17. e4 {[%clk 0:01:45]}  Rad8 {[%clk 0:02:33]} 18. Rfe1 {[%clk 0:01:32]}  Qc5 {[%clk 0:02:27]} 19. Rab1 {[%clk 0:01:24]}  Na5 {[%clk 0:02:25]} 20. exd5 {[%clk 0:01:13]}  Qxd5 {[%clk 0:02:22]} 21. Bxh6 {[%clk 0:00:58]}  Bxa4 {[%clk 0:01:55]} 22. Rb4 {[%clk 0:00:49]}  Bxc2 {[%clk 0:01:51]} 23. Qg5 {[%clk 0:00:24]}  Qxg5 {[%clk 0:01:48]} 24. Bxg5 {[%clk 0:00:24]}  Rxd3 {[%clk 0:01:49]} 0-1


[Site "https://www.chess.com"]

[Event "Titled Tuesday Blitz July 27 2021"]
[White "Piesik, Piotr"]
[Black "Chernomordik, Pavel"]
[WhiteFideId "1136194"]
[BlackFideId "2804530"]
[WhiteElo "2354"]
[BlackElo "2273"]
[Result "1-0"]
[Round "10"]
[TimeControl "180+1"]
[Date "2021.07.27"]
[WhiteClock "0:00:25"]
[BlackClock "0:00:03"]

1. Nf3 {[%clk 0:02:55]}  g6 {[%clk 0:03:00]} 2. g3 {[%clk 0:02:55]}  Bg7 {[%clk 0:03:01]} 3. d4 {[%clk 0:02:56]}  d6 {[%clk 0:03:00]} 4. Bg2 {[%clk 0:02:56]}  Nf6 {[%clk 0:02:59]} 5. O-O {[%clk 0:02:56]}  O-O {[%clk 0:02:59]} 6. Nbd2 {[%clk 0:02:57]}  c6 {[%clk 0:02:58]} 7. e4 {[%clk 0:02:57]}  a6 {[%clk 0:02:56]} 8. Qe2 {[%clk 0:02:56]}  b5 {[%clk 0:02:54]} 9. a4 {[%clk 0:02:56]}  Bb7 {[%clk 0:02:51]} 10. e5 {[%clk 0:02:56]}  Nd5 {[%clk 0:02:50]} 11. e6 {[%clk 0:02:48]}  f5 {[%clk 0:02:47]} 12. c3 {[%clk 0:02:44]}  c5 {[%clk 0:02:38]} 13. dxc5 {[%clk 0:02:40]}  dxc5 {[%clk 0:02:37]} 14. axb5 {[%clk 0:02:40]}  axb5 {[%clk 0:02:35]} 15. Rxa8 {[%clk 0:02:41]}  Bxa8 {[%clk 0:02:32]} 16. Qxb5 {[%clk 0:02:33]}  Qd6 {[%clk 0:02:30]} 17. Re1 {[%clk 0:02:32]}  Nc7 {[%clk 0:02:26]} 18. Qe2 {[%clk 0:02:26]}  Bd5 {[%clk 0:02:22]} 19. Ng5 {[%clk 0:02:22]}  Bxg2 {[%clk 0:02:15]} 20. Kxg2 {[%clk 0:02:21]}  Nc6 {[%clk 0:02:12]} 21. Nc4 {[%clk 0:02:20]}  Qd5+ {[%clk 0:02:12]} 22. Kg1 {[%clk 0:02:17]}  h6 {[%clk 0:02:10]} 23. Nf3 {[%clk 0:02:06]}  Rd8 {[%clk 0:02:01]} 24. Bf4 {[%clk 0:02:04]}  Ne8 {[%clk 0:01:52]} 25. h4 {[%clk 0:02:03]}  Kh7 {[%clk 0:01:50]} 26. Nb6 {[%clk 0:01:45]}  Qb3 {[%clk 0:01:47]} 27. Nd7 {[%clk 0:01:45]}  Nf6 {[%clk 0:01:42]} 28. Nxc5 {[%clk 0:01:42]}  Qd5 {[%clk 0:01:34]} 29. b4 {[%clk 0:01:37]}  Nh5 {[%clk 0:01:26]} 30. Be5 {[%clk 0:01:28]}  Nxe5 {[%clk 0:01:24]} 31. Nxe5 {[%clk 0:01:29]}  Nf6 {[%clk 0:01:06]} 32. c4 {[%clk 0:01:16]}  Qa8 {[%clk 0:00:55]} 33. b5 {[%clk 0:01:16]}  Ne4 {[%clk 0:00:49]} 34. Nxe4 {[%clk 0:01:10]}  Bxe5 {[%clk 0:00:47]} 35. Nc5 {[%clk 0:01:00]}  Bd4 {[%clk 0:00:44]} 36. Nd7 {[%clk 0:00:59]}  Qa3 {[%clk 0:00:41]} 37. Kg2 {[%clk 0:00:56]}  Rc8 {[%clk 0:00:33]} 38. Rd1 {[%clk 0:00:53]}  Qa7 {[%clk 0:00:25]} 39. h5 {[%clk 0:00:51]}  g5 {[%clk 0:00:17]} 40. Qd3 {[%clk 0:00:51]}  Bg7 {[%clk 0:00:12]} 41. Qxf5+ {[%clk 0:00:50]}  Kh8 {[%clk 0:00:12]} 42. Ne5 {[%clk 0:00:43]}  Qb7+ {[%clk 0:00:09]} 43. Qf3 {[%clk 0:00:38]}  Qc7 {[%clk 0:00:07]} 44. Nf7+ {[%clk 0:00:35]}  Kg8 {[%clk 0:00:07]} 45. Rd7 {[%clk 0:00:32]}  Qxc4 {[%clk 0:00:06]} 46. Rxe7 {[%clk 0:00:31]}  g4 {[%clk 0:00:05]} 47. Nxh6+ {[%clk 0:00:31]}  Kh8 {[%clk 0:00:05]} 48. Nf7+ {[%clk 0:00:29]}  Kg8 {[%clk 0:00:04]} 49. Qf5 {[%clk 0:00:26]}  Qd5+ {[%clk 0:00:03]} 50. Qxd5 {[%clk 0:00:25]} 1-0


[Site "https://www.chess.com"]

[Event "Titled Tuesday Blitz July 27 2021"]
[White "Potapova, Margarita"]
[Black "Prydun, Andriy"]
[WhiteFideId "14126869"]
[BlackFideId "14145898"]
[WhiteElo "2229"]
[BlackElo "2024"]
[Result "1/2-1/2"]
[Round "10"]
[TimeControl "180+1"]
[Date "2021.07.27"]
[WhiteClock "0:00:31"]
[BlackClock "0:00:05"]

1. d4 {[%clk 0:02:56]}  e6 {[%clk 0:02:59]} 2. c4 {[%clk 0:02:56]}  c5 {[%clk 0:02:58]} 3. d5 {[%clk 0:02:55]}  exd5 {[%clk 0:02:59]} 4. cxd5 {[%clk 0:02:56]}  d6 {[%clk 0:02:59]} 5. Nc3 {[%clk 0:02:55]}  Nf6 {[%clk 0:02:50]} 6. Nf3 {[%clk 0:02:56]}  g6 {[%clk 0:02:49]} 7. Bf4 {[%clk 0:02:56]}  a6 {[%clk 0:02:47]} 8. a4 {[%clk 0:02:56]}  b6 {[%clk 0:02:44]} 9. h3 {[%clk 0:02:46]}  Ra7 {[%clk 0:02:34]} 10. e3 {[%clk 0:02:45]}  Bg7 {[%clk 0:02:29]} 11. Be2 {[%clk 0:02:45]}  O-O {[%clk 0:02:28]} 12. O-O {[%clk 0:02:45]}  Ne8 {[%clk 0:02:19]} 13. Nd2 {[%clk 0:02:45]}  Nd7 {[%clk 0:02:05]} 14. Nc4 {[%clk 0:02:42]}  Ne5 {[%clk 0:02:02]} 15. Bxe5 {[%clk 0:02:36]}  dxe5 {[%clk 0:01:59]} 16. Qb3 {[%clk 0:02:35]}  Rb7 {[%clk 0:01:49]} 17. Rfd1 {[%clk 0:02:29]}  Rb8 {[%clk 0:01:19]} 18. Ne4 {[%clk 0:02:16]}  Bf5 {[%clk 0:01:02]} 19. Ng3 {[%clk 0:02:12]}  Bc8 {[%clk 0:00:59]} 20. Ne4 {[%clk 0:01:44]}  Bf5 {[%clk 0:00:58]} 21. Nc3 {[%clk 0:01:41]}  Bc8 {[%clk 0:00:56]} 22. Bf1 {[%clk 0:01:36]}  Nd6 {[%clk 0:00:55]} 23. Nxd6 {[%clk 0:01:32]}  Qxd6 {[%clk 0:00:55]} 24. Ne4 {[%clk 0:01:30]}  Qd8 {[%clk 0:00:52]} 25. Nxc5 {[%clk 0:01:30]}  Ra8 {[%clk 0:00:27]} 26. Ne4 {[%clk 0:01:25]}  Bb7 {[%clk 0:00:26]} 27. Nc3 {[%clk 0:01:24]}  Qd6 {[%clk 0:00:24]} 28. Ne4 {[%clk 0:01:12]}  Qd8 {[%clk 0:00:24]} 29. Rac1 {[%clk 0:01:11]}  h6 {[%clk 0:00:22]} 30. Qb4 {[%clk 0:01:00]}  Qh4 {[%clk 0:00:13]} 31. Rc7 {[%clk 0:00:53]}  Rab8 {[%clk 0:00:10]} 32. g3 {[%clk 0:00:49]}  Qd8 {[%clk 0:00:09]} 33. d6 {[%clk 0:00:45]}  f5 {[%clk 0:00:08]} 34. Nc3 {[%clk 0:00:39]}  Bf3 {[%clk 0:00:08]} 35. Rd2 {[%clk 0:00:37]}  f4 {[%clk 0:00:07]} 36. Bc4+ {[%clk 0:00:30]}  Kh8 {[%clk 0:00:06]} 37. Bd5 {[%clk 0:00:31]}  fxg3 {[%clk 0:00:05]} 38. fxg3 {[%clk 0:00:31]}  Qg5 {[%clk 0:00:05]} 1/2-1/2


[Site "https://www.chess.com"]

[Event "Titled Tuesday Blitz July 27 2021"]
[White "Quintiliano Pinto, Renato R."]
[Black "Najdin, Danil"]
[WhiteFideId "2117568"]
[BlackFideId "4172426"]
[WhiteElo "2439"]
[BlackElo "2193"]
[Result "0-1"]
[Round "10"]
[TimeControl "180+1"]
[Date "2021.07.27"]
[WhiteClock "0:00:06"]
[BlackClock "0:00:11"]

1. Nf3 {[%clk 0:03:00]}  Nf6 {[%clk 0:02:59]} 2. c4 {[%clk 0:03:00]}  g6 {[%clk 0:03:00]} 3. Nc3 {[%clk 0:03:00]}  Bg7 {[%clk 0:03:00]} 4. d4 {[%clk 0:03:00]}  d6 {[%clk 0:03:00]} 5. Bg5 {[%clk 0:02:57]}  O-O {[%clk 0:03:00]} 6. e3 {[%clk 0:02:57]}  c6 {[%clk 0:02:45]} 7. Be2 {[%clk 0:02:55]}  Nbd7 {[%clk 0:02:45]} 8. Qc2 {[%clk 0:02:53]}  e5 {[%clk 0:02:43]} 9. O-O {[%clk 0:02:52]}  Qe7 {[%clk 0:02:38]} 10. Rfd1 {[%clk 0:02:49]}  h6 {[%clk 0:02:37]} 11. Bh4 {[%clk 0:02:48]}  g5 {[%clk 0:02:26]} 12. Bg3 {[%clk 0:02:46]}  Nh5 {[%clk 0:02:25]} 13. dxe5 {[%clk 0:02:29]}  Nxg3 {[%clk 0:02:23]} 14. hxg3 {[%clk 0:02:25]}  Nxe5 {[%clk 0:02:15]} 15. Rd2 {[%clk 0:02:05]}  Be6 {[%clk 0:02:13]} 16. Nd4 {[%clk 0:01:49]}  f5 {[%clk 0:01:53]} 17. Rad1 {[%clk 0:01:39]}  Rad8 {[%clk 0:01:53]} 18. b3 {[%clk 0:01:22]}  f4 {[%clk 0:01:46]} 19. exf4 {[%clk 0:01:17]}  gxf4 {[%clk 0:01:46]} 20. Ne4 {[%clk 0:01:16]}  fxg3 {[%clk 0:01:39]} 21. Nxg3 {[%clk 0:01:15]}  c5 {[%clk 0:00:57]} 22. Nxe6 {[%clk 0:01:03]}  Qxe6 {[%clk 0:00:57]} 23. Qe4 {[%clk 0:01:04]}  Qf6 {[%clk 0:00:50]} 24. Bh5 {[%clk 0:00:52]}  Nc6 {[%clk 0:00:48]} 25. Re1 {[%clk 0:00:18]}  Nd4 {[%clk 0:00:47]} 26. Qxb7 {[%clk 0:00:18]}  Qg5 {[%clk 0:00:41]} 27. Qd5+ {[%clk 0:00:18]}  Qxd5 {[%clk 0:00:38]} 28. cxd5 {[%clk 0:00:18]}  Be5 {[%clk 0:00:38]} 29. Ne4 {[%clk 0:00:17]}  Bf4 {[%clk 0:00:32]} 30. Rd3 {[%clk 0:00:15]}  Rf5 {[%clk 0:00:31]} 31. Bg4 {[%clk 0:00:14]}  Rff8 {[%clk 0:00:19]} 32. g3 {[%clk 0:00:14]}  Be5 {[%clk 0:00:17]} 33. Nxc5 {[%clk 0:00:13]}  Bxg3 {[%clk 0:00:11]} 34. fxg3 {[%clk 0:00:08]}  dxc5 {[%clk 0:00:12]} 35. Be6+ {[%clk 0:00:08]}  Kg7 {[%clk 0:00:12]} 36. Kg2 {[%clk 0:00:09]}  Rf6 {[%clk 0:00:12]} 37. Rf1 {[%clk 0:00:05]}  Rxf1 {[%clk 0:00:11]} 38. Kxf1 {[%clk 0:00:06]}  Nxe6 {[%clk 0:00:11]} 0-1


[Site "https://www.chess.com"]